Workbook

Sheet Liste d'achat
A1: Catégorie | B1: Item et description | C1: Local | D1: Ordre de priorité | E1: Marque et modèle | F1: Dimensions (L-P-H) | G1: Garantie | H1: Quantité | I1: Prix unitaire hors txs | J1: Total | K1: Fournisseur
A2: Cuisine et buanderie
A3: Équipement de conservation | B3: Frigo double coulissante | C3: Cuisine | D3: 1- Indispensable | E3: New air | G3: 5 ans | H3: 1 | I3: 4000 | J3: =H3*I3 -> 4000 | K3: Doyon
A4: Équipement de conservation | B4: Congélateur double coulissante | C4: Cuisine | D4: 1- Indispensable | G4: 3 ans | H4: 1 | I4: 6000 | J4: =H4*I4 -> 6000 | K4: Plurigamme
A5: Équipement de nettoyage | B5: Laveuse industrielle (superposée) | C5: Buanderie | D5: 1- Indispensable | H5: 1 | I5: 1500 | J5: 1500
A6: Équipement de nettoyage | B6: Sécheuse industrielle (superposée) | C6: Buanderie | D6: 1- Indispensable | H6: 1 | I6: 1500 | J6: 1500
A7: Équipement de conservation | B7: Cuisinière 6 ronds | C7: Cuisine | D7: 1- Indispensable | H7: 1 | I7: 5000 | J7: 5000
A8: Équipement de préparation | B8: Four convection sur échelle | C8: Cuisine | D8: 1- Indispensable | H8: 1 | I8: 7000 | J8: 7000
A9: Équipement de nettoyage | B9: Lave-vaisselle | C9: Cuisine | D9: 1- Indispensable | H9: 1 | I9: 5000 | J9: 5000
A10: Équipement de cuisson | B10: Chaudron | C10: Cuisine | D10: 3- Secondaire | G10: vie | H10: 1 | I10: 150 | J10: 150 | K10: Ikea
A11: Équipement | J11: 0
A12: Équipement | J12: 0
A13: Équipement | J13: 0
A14: Équipement | J14: 0
A15: Équipement | J15: 0
A16: Matériel et mobilier de bureau
A17: Équipement | B17: Pouf | C17: Salle du personnel | D17: 3- Secondaire | H17: 1 | I17: 100 | J17: =H17*I17 -> 100 | K17: Wintergreen
A18: Équipement | J18: =H18*I18 -> 0
A19: Équipement | J19: 0
A20: Mobilier | J20: 0
A21: Mobilier | J21: 0
A22: Mobilier | J22: 0
A23: Matériel informatique
A24: Équipement | B24: Ordinateurs portables | C24: Autre | D24: 1- Indispensable | E24: Lenovo mégaTOP100 | F24: 18 po | G24: 1 an | H24: 3 | I24: 850 | J24: =H24*I24 -> 2550 | K24: Prime Cables
A25: Équipement | B25: Tablette | C25: Autre | D25: 2- Important | E25: Samsung S28 | F25: 10 po | G25: 3 mois | H25: 8 | I25: 400 | J25: =H25*I25 -> 3200 | K25: Bureau en gros
A26: Équipement | B26: Clavier | C26: Autre | D26: 1- Indispensable | E26: Logi | F26: N/A | G26: 1 mois | H26: 3 | I26: 50 | J26: 150 | K26: Prime Cables
A27: Équipement | B27: Écran | C27: Autre | D27: 2- Important | E27: Acer | F27: 24 po | G27: 1 mois | H27: 2 | I27: 108 | J27: 216 | K27: Prime Cables
A28: Équipement | J28: 0
A29: Équipement | J29: 0
A30: Pouponnière- mobilier/gros équipements
A31: Gros équipement | B31: Grand matelas gris | C31: Autre | D31: 2- Important | E31: N/A | F31: 6 x 4 pi | G31: 1 an | H31: 2 | I31: 250 | J31: =H31*I31 -> 500 | K31: Biggy Boom
A32: Mobilier | B32: module en bois | C32: Tous | D32: 2- Important | E32: Community playthings | G32: 5 ans | H32: 1 | I32: 1300 | J32: 1300 | K32: Louise Kool
A33: Mobilier | J33: 0
A34: Gros équipement | J34: 0
A35: Mobilier | J35: 0
A36: Équipement | J36: 0
A37: Équipement | J37: 0
A38: Équipement | J38: 0
A39: Équipement | J39: 0
A40: Aire de jeu - mobilier/gros équipements
A41: Gros équipement | B41: table 8 places/ local des 4 ans | C41: Groupe 8 | E41: sur mesure en merisier | F41: 200cm-60cm-60cm | G41: à vie | H41: 2 | I41: 300 | J41: =H41*I41 -> 600 | K41: Boulot vers
A42: Gros équipement | B42: Matelas sieste | C42: Tous | E42: mousse haute densité | H42: 60 | I42: 40 | J42: =H42*I42 -> 2400
A43: Mobilier | J43: 0
A44: Mobilier | J44: 0
A45: Mobilier | J45: 0
A46: Mobilier | J46: 0
A47: Mobilier | J47: 0
A48: Mobilier | J48: 0
A49: Mobilier | J49: 0
A50: Mobilier | J50: =H50*I50 -> 0
A51: Mobilier | J51: 0
A52: Pouponnière - matériel
A53: Dév. social et affectif | B53: Poupées | C53: Tous | D53: 1- Indispensable | F53: Grande | G53: 1 an | H53: 20 | I53: 30 | J53: =H53*I53 -> 600 | K53: Spectrum-Nasco
A54: Dév. physique et moteur | C54: Poup 1 | J54: =H54*I54 -> 0 | K54: BB
A55: Dév. social et affectif | C55: Poup 1 | J55: =H55*I55 -> 0 | K55: BB
A56: Dév. langagier | C56: Poup 2 | J56: =H56*I56 -> 0 | K56: BB
A57: Dév. physique et moteur | C57: Poup 3 | J57: =H57*I57 -> 0 | K57: BB
A58: Dév. langagier | J58: =H58*I58 -> 0
A59: Dév. langagier | J59: 0
A60: Dév. langagier | J60: 0
A61: Dév. langagier | J61: 0
A62: Dév. cognitif | J62: =H62*I62 -> 0
A63: Dév. cognitif | J63: 0
A64: Dév. cognitif | J64: 0
A65: Dév. cognitif | J65: 0
A66: Dév. cognitif | J66: 0
A67: Dév. social et affectif | J67: 0
A68: Dév. social et affectif | J68: 0
A69: Dév. social et affectif | J69: 0
A70: Dév. social et affectif | J70: 0
A71: Aire de jeu - matériel
A72: Dév. physique et moteur | B72: Cerceaux | C72: Salle multi | D72: 2- Important | F72: Grand | H72: 12 | I72: 8 | J72: =H72*I72 -> 96 | K72: FDMT
A73: Dév. physique et moteur | J73: =H73*I73 -> 0
A74: Dév. physique et moteur | J74: 0
A75: Autre | J75: 0
J76: 0
J77: 0
J78: 0
J79: 0
J80: 0
J81: 0
J82: 0
J83: 0
J84: 0
J85: 0
J86: 0
J87: 0
J88: 0
J89: 0
J90: 0
J91: 0
J92: 0
J93: 0
J94: 0
J95: 0
J96: 0
J97: 0
J98: 0
J99: 0
J100: 0
J101: 0
J102: 0
J103: 0
J104: 0
J105: 0
J106: 0
J109: 0
J110: 0
J111: 0
J112: 0
J113: 0
J114: 0
J115: 0
J116: 0
J117: 0
J118: 0
J119: 0
J120: 0
A121: Matériel de soins et lingerie
A122: Équipement | B122: Débarbouillette pqt de 20 | C122: Autre | D122: 1- Indispensable | H122: 6 | I122: 28 | J122: =H122*I122 -> 168 | K122: Guylaine Beaucage
A123: Équipement | B123: Bavoir | C123: Autre | D123: 1- Indispensable | H123: 8 | I123: 25 | J123: =H123*I123 -> 200 | K123: Éclipse
A124: Équipement | B124: Serpentain -ajustable 4 À 10 places | C124: Autre | D124: 2- Important | G124: 1 mois | H124: 3 | I124: 50 | J124: 150 | K124: Brault et Bouthillier
A125: Équipement | B125: Trousse de 1er soins (grande conforme) | C125: Autre | D125: 1- Indispensable | F125: Grandes trousses | H125: 2 | I125: 55 | J125: 110 | K125: Biggy Boom
A126: Équipement | B126: Sac à dos | C126: Autre | D126: 2- Important | H126: 10 | I126: 40 | J126: 400 | K126: Dernière chasse
A127: Équipement | B127: Trousse 1er soin portables | C127: Autre | D127: 1- Indispensable | F127: portable à la taille | H127: 6 | I127: 18 | J127: 108 | K127: Biggy Boom
A128: Équipement | J128: 0
A130: Total dépenses avant taxes | J130: =SUBTOTAL(9,J2:J128) -> 42998
A131: TPS | J131: =J130*0.05 -> 2149.9
A132: TVQ | J132: =J130*0.0975 -> 4192.305
A133: Total dépenses avec 50% des taxes | J133: =J130+((J131+J132)/2) -> 46169.1025
A134: Montant disponible incluant 50% des taxes (PFI) | J134: 128619
A135: Différence | J135: =J134-J133 -> 82449.8975

Sheet Estimation Électros
B1: Marque | C1: Modèle | D1: Largeur | E1: Profondeur | F1: Hauteur | G1: Image
A2: Congélo simple vitrée battante | B2: New Air | C2: NGF-054-H | D2: 27" | E2: 32.5" | F2: 81" | H2: 4000
A3: Congélo simple vitrée battante | B3: Kool-it | C3: KGF-23 | D3: 26,8" | E3: 33,5" | F3: 80,1" | H3: 3500
A4: Congélateur simple battante pleine | B4: New Air | C4: NSF-050-H | D4: 27,5" | E4: 32,5" | F4: 82" | H4: 3500
A5: Congélo double battante vitrée | B5: New Air | C5: NGF-122-H | D5: 54.5" | E5: 33" | F5: 78.5" | H5: 6000
A6: Congélo double battante vitrée | B6: Kool-it | C6: KGF-48 | D6: 53,9" | E6: 33,5" | F6: 52,7" | H6: 5000
A7: Congélo double battante pleine | B7: Atosa | C7: MBF-8503 | D7: 54,5" | E7: 32" | F7: 83,5" | H7: 5000
A8: Congélateur double battante pleine | B8: New Air | C8: NSF-115-H | D8: 54,5" | E8: 32,5" | F8: 82" | H8: 6000
A9: Congélateur double battante pleine | B9: IKON | C9: IBF54F | D9: 53,9" | E9: 32,7" | F9: 82,3" | H9: 4000
A10: Frigo simple battante vitrée | B10: New Air | C10: NGR-068-H | D10: 30" | E10: 32" | F10: 79" | H10: 3000
A11: Frigo simple battante vitrée | B11: Kool-it | C11: KGM-23 | D11: 27,6" | E11: 31,1" | F11: 80,9" | H11: 2500
A12: Frigo simple battante pleine | B12: New Air | C12: NSR-050-H | D12: 27,5" | E12: 32,5" | F12: 82" | H12: 3000
A13: Frigo double coulissante vitrée | B13: Kool-it | C13: KMS-40 | D13: 47,5" | E13: 30,7" | F13: 75" | H13: 3000
A14: Frigo double coulissante vitrée | B14: New Air | C14: NGR-115-S | D14: 55" | E14: 31.5" | F14: 79" | H14: 4000
A15: Frigo double battante pleine | B15: New Air | C15: NSR-115-H | D15: 54,5" | E15: 32,5" | F15: 82" | H15: 5000
A16: Frigo double battante pleine | B16: Atosa | C16: MBF-8507 | D16: 55" | E16: 32" | F16: 83,5" | H16: 4000
A17: Cuisinière 4 ronds | B17: Royal Series | C17: RRE4 | D17: 24" | E17: 36" | F17: 57" | H17: 5500
A18: Cuisinière 6 ronds | B18: Royal Series | C18: RRE6 | D18: 36" | E18: 36" | F18: 57 | H18: 4000$-6000$
A19: Four convection compact | B19: Eurodib | C19: XAF023 | D19: 24,8" | E19: 23,6" | F19: 18,6" | H19: 4500
A20: Four convection | B20: Royal series | C20: RECO-1 | D20: 34" | E20: 62" | F20: 38" | H20: 4500
A21: Four convection sur échelle | B21: Turbofan | C21: E32D5 ON THE SK32 STAND | D21: 29" | E21: 32" | F21: 64" | H21: 7000
A22: plaque induction | B22: Eurodib | C22: IHE3097-P2 | H22: 270
A23: Mélangeur 5 Pintes | B23: Globe Canada | C23: SP5-Q | H23: 1250
A24: Mélangeur 20 Pintes | B24: Globe Canada | C24: SPC-20 | H24: 4000
A25: Lave-vaisselle | B25: Lamber Eurodib | C25: F92EKDPS | D25: 24" | E25: 41" porte ouverte | F25: 33" à mettre sur socle | H25: 5000
A26: Lave-vaisselle | B26: Moyer Diebel | C26: Nexus 900 | D26: 24" | E26: 40,5" porte ouverte | F26: 34" à mettre sur socle | H26: 4500
A27: Base ergo pour lave-vaisselle | B27: Lamber Eurodib | C27: AC00005D porte avant, 3 côtés fermés | D27: 23,75" | E27: 23,75" | F27: 22" | H27: 1000-1500$
A28: Laveuse-sécheuse superposées | B28: Huebsch Commercial | C28: YTEE5ASP173TW01 | D28: 27" | E28: 28" | F28: 78,5" | H28: 3500
A29: Laveuse | B29: Huebsch Résidentiel durable | C29: TC5102WN | D29: 26 | E29: 28 | F29: 43 | H29: 1500
A30: Sécheuse | B30: Huebsch Résidentiel durable | C30: DC5102WE | D30: 26 | E30: 28 | F30: 43 | H30: 1500

Sheet Comparatif des fournisseurs
A1: Catégorie | B1: Item | C1: Quantité | D1: prix unitaire hors txs. | E1: Total | F1: prix unitaire hors txs. | G1: Total | H1: prix unitaire hors txs. | I1: Total | J1: prix unitaire hors txs. | K1: Total
A2: Cuisine et buanderie
D3: Fournisseur 1 | F3: Fournisseur 2 | H3: Fournisseur 3 | J3: Fournisseur 4
A4: Équipement de conservation | B4: congélo simple | C4: 2 | D4: 2020.5 | E4: =C4*D4 -> 4041 | F4: 1850 | G4: =C4*F4 -> 3700 | H4: 3000.5 | I4: =C4*H4 -> 6001 | K4: =C4*J4 -> 0
A5: Équipement de conservation | B5: frigo double | C5: 1 | D5: 2500 | E5: =C5*D5 -> 2500 | G5: =C5*F5 -> 0 | I5: =C5*H5 -> 0 | K5: =C5*J5 -> 0
A6: Équipement de nettoyage | B6: lave-vaiselle | C6: 1 | D6: 1300 | E6: 1300 | G6: 0 | I6: 0 | K6: 0
A7: Petit équipement | E7: 0 | G7: 0 | I7: 0 | K7: 0
A8: Équipement | E8: 0 | G8: 0 | I8: 0 | K8: 0
A9: Équipement | E9: 0 | G9: 0 | I9: 0 | K9: 0
A10: Équipement | E10: 0 | G10: 0 | I10: 0 | K10: 0
A11: Équipement | E11: 0 | G11: 0 | I11: 0 | K11: 0
A12: Équipement | E12: 0 | G12: 0 | I12: 0 | K12: 0
A13: Équipement | E13: =C13*D13 -> 0 | G13: =C13*F13 -> 0 | I13: =C13*H13 -> 0 | K13: =C13*J13 -> 0
A14: Équipement | E14: 0 | G14: 0 | I14: 0 | K14: 0
A15: Équipement | E15: 0 | G15: 0 | I15: 0 | K15: 0
A16: Équipement | E16: 0 | G16: 0 | I16: 0 | K16: 0
A17: Équipement | E17: 0 | G17: 0 | I17: 0 | K17: 0
A18: TOTAL | E18: =SUM(E4:E17) -> 7841 | G18: =SUM(G4:G17) -> 3700 | I18: =SUM(I4:I17) -> 6001 | K18: =SUM(K4:K17) -> 0
A20: Matériel et mobilier de bureau
D21: Fournisseur 1 | F21: Fournisseur 2 | H21: Fournisseur 3 | J21: Fournisseur 4
A22: Mobilier | B22: Chaise ordi ergo | C22: 4 | D22: 150 | E22: =C22*D22 -> 600 | F22: 129.99 | G22: =C22*F22 -> 519.96 | H22: 210 | I22: =C22*H22 -> 840 | K22: =C22*J22 -> 0
A23: Équipement | E23: =C23*D23 -> 0 | G23: =C23*F23 -> 0 | I23: =C23*H23 -> 0 | K23: 0
A24: Équipement | E24: 0 | G24: 0 | I24: 0 | K24: 0
A25: Mobilier | E25: =C25*D25 -> 0 | G25: 0 | I25: 0 | K25: 0
A26: Équipement | E26: =C26*D26 -> 0 | G26: =C26*F26 -> 0 | I26: =C26*H26 -> 0 | K26: =C26*J26 -> 0
A27: Équipement | E27: 0 | G27: 0 | I27: 0 | K27: 0
A28: TOTAL | E28: =SUM(E22:E27) -> 600 | G28: =SUM(G22:G27) -> 519.96 | I28: =SUM(I22:I27) -> 840 | K28: =SUM(K22:K27) -> 0
A30: Matériel informatique
D31: Fournisseur 1 | F31: Fournisseur 2 | H31: Fournisseur 3 | J31: Fournisseur 4
A32: Mobilier | E32: =C32*D32 -> 0 | G32: =C32*F32 -> 0 | I32: =C32*H32 -> 0 | K32: =C32*J32 -> 0
A33: Mobilier | E33: =C33*D33 -> 0 | G33: =C33*F33 -> 0 | I33: =C33*H33 -> 0 | K33: =C33*J33 -> 0
A34: Mobilier | E34: 0 | G34: 0 | I34: 0 | K34: 0
A35: Équipement | E35: 0 | G35: 0 | I35: 0 | K35: 0
A36: Équipement | E36: 0 | G36: 0 | I36: 0 | K36: 0
A37: Équipement | E37: 0 | G37: 0 | I37: 0 | K37: 0
A38: TOTAL | E38: =SUM(E32:E37) -> 0 | G38: =SUM(G32:G37) -> 0 | I38: =SUM(I32:I37) -> 0 | K38: =SUM(K32:K37) -> 0
A40: Pouponnière - mobilier
D41: Fournisseur 1 | F41: Fournisseur 2 | H41: Fournisseur 3 | J41: Fournisseur 4
A42: Mobilier | E42: =C42*D42 -> 0 | G42: =C42*F42 -> 0 | I42: =C42*H42 -> 0 | K42: =C42*J42 -> 0
A43: Mobilier | E43: =C43*D43 -> 0 | G43: =C43*F43 -> 0 | I43: =C43*H43 -> 0 | K43: =C43*J43 -> 0
A44: Mobilier | E44: 0 | G44: 0 | I44: 0 | K44: 0
A45: Mobilier | E45: 0 | G45: 0 | I45: 0 | K45: 0
A46: Mobilier | E46: 0 | G46: 0 | I46: 0 | K46: 0
A47: Mobilier | E47: 0 | G47: 0 | I47: 0 | K47: 0
A48: TOTAL | E48: =SUM(E42:E47) -> 0 | G48: =SUM(G42:G47) -> 0 | I48: =SUM(I42:I47) -> 0 | K48: =SUM(K42:K47) -> 0
A50: Aire de jeu - mobilier
D51: Fournisseur 1 | F51: Fournisseur 2 | H51: Fournisseur 3 | J51: Fournisseur 4
A52: Mobilier | B52: Table lumineuse | C52: 1 | D52: 1600 | E52: =C52*D52 -> 1600 | G52: =C52*F52 -> 0 | I52: =C52*H52 -> 0 | K52: =C52*J52 -> 0
A53: Mobilier | E53: =C53*D53 -> 0 | G53: =C53*F53 -> 0 | I53: =C53*H53 -> 0 | K53: =C53*J53 -> 0
A54: Mobilier | E54: 0 | G54: 0 | I54: 0 | K54: 0
A55: Mobilier | E55: 0 | G55: 0 | I55: 0 | K55: 0
A56: Mobilier | E56: 0 | G56: 0 | I56: 0 | K56: 0
A57: Mobilier | E57: 0 | G57: 0 | I57: 0 | K57: 0
A58: Mobilier | E58: 0 | G58: 0 | I58: 0 | K58: 0
A59: Mobilier | E59: 0 | G59: 0 | I59: 0 | K59: 0
A60: Mobilier | E60: =C60*D60 -> 0 | G60: =C60*F60 -> 0 | I60: =C60*H60 -> 0 | K60: =C60*J60 -> 0
A61: Mobilier | E61: 0 | G61: 0 | I61: 0 | K61: 0
A62: TOTAL | E62: =SUM(E52:E61) -> 1600 | G62: =SUM(G52:G61) -> 0 | I62: =SUM(I52:I61) -> 0 | K62: =SUM(K52:K61) -> 0
A64: Pouponnière - matériel
D65: Fournisseur 1 | F65: Fournisseur 2 | H65: Fournisseur 3 | J65: Fournisseur 4
A66: Dév physique et moteur | B66: module EN BOIS | C66: 1 | D66: 1800 | E66: =C66*D66 -> 1800 | G66: =C66*F66 -> 0 | I66: =C66*H66 -> 0 | K66: =C66*J66 -> 0
A67: Dév physique et moteur | E67: =C67*D67 -> 0 | G67: =C67*F67 -> 0 | I67: =C67*H67 -> 0 | K67: =C67*J67 -> 0
A68: Dév physique et moteur | E68: 0 | G68: 0 | I68: 0 | K68: 0
A69: Dév physique et moteur | E69: 0 | G69: 0 | I69: 0 | K69: 0
A70: Dév physique et moteur | E70: 0 | G70: 0 | I70: 0 | K70: 0
A71: Dév physique et moteur | E71: 0 | G71: 0 | I71: 0 | K71: 0
A72: Dév physique et moteur | E72: 0 | G72: 0 | I72: 0 | K72: 0
A73: Dév. social et affectif | E73: 0 | G73: 0 | I73: 0 | K73: 0
A74: Dév social et affectif | E74: 0 | G74: 0 | I74: 0 | K74: 0
A75: Dév social et affectif | E75: 0 | G75: 0 | I75: 0 | K75: 0
A76: Dév social et affectif | E76: 0 | G76: 0 | I76: 0 | K76: 0
A77: Dév social et affectif | E77: 0 | G77: 0 | I77: 0 | K77: 0
A78: Dév social et affectif | E78: 0 | G78: 0 | I78: 0 | K78: 0
A79: Dév social et affectif | E79: 0 | G79: 0 | I79: 0 | K79: 0
A80: Dév social et affectif | E80: 0 | G80: 0 | I80: 0 | K80: 0
A81: Dév social et affectif | E81: 0 | G81: 0 | I81: 0 | K81: 0
A82: Dév cognitif | E82: 0 | G82: 0 | I82: 0 | K82: 0
A83: Dév cognitif | E83: 0 | G83: 0 | I83: 0 | K83: 0
A84: Dév cognitif | E84: 0 | G84: 0 | I84: 0 | K84: 0
A85: Dév cognitif | E85: 0 | G85: 0 | I85: 0 | K85: 0
A86: Dév cognitif | E86: 0 | G86: 0 | I86: 0 | K86: 0
A87: Dév cognitif | E87: 0 | G87: 0 | I87: 0 | K87: 0
A88: Dév cognitif | E88: 0 | G88: 0 | I88: 0 | K88: 0
A89: Dév cognitif | E89: 0 | G89: 0 | I89: 0 | K89: 0
A90: Dév langagier | E90: 0 | G90: 0 | I90: 0 | K90: 0
A91: Dév langagier | E91: 0 | G91: 0 | I91: 0 | K91: 0
A92: Dév langagier | E92: 0 | G92: 0 | I92: 0 | K92: 0
A93: Dév langagier | E93: 0 | G93: 0 | I93: 0 | K93: 0
A94: Dév langagier | E94: 0 | G94: 0 | I94: 0 | K94: 0
A95: Dév langagier | E95: 0 | G95: 0 | I95: 0 | K95: 0
A96: Autre | E96: 0 | G96: 0 | I96: 0 | K96: 0
A97: Autre | E97: =C97*D97 -> 0 | G97: =C97*F97 -> 0 | I97: =C97*H97 -> 0 | K97: =C97*J97 -> 0
A98: TOTAL | E98: =SUM(E66:E97) -> 1800 | G98: =SUM(G66:G97) -> 0 | I98: =SUM(I66:I97) -> 0 | K98: =SUM(K66:K97) -> 0
A100: Aire de jeu - matériel
D101: Fournisseur 1 | F101: Fournisseur 2 | H101: Fournisseur 3 | J101: Fournisseur 4
A102: Dév physique et moteur | E102: =C102*D102 -> 0 | G102: =C102*F102 -> 0 | I102: =C102*H102 -> 0 | K102: =C102*J102 -> 0
A103: Dév physique et moteur | E103: 0 | G103: 0 | I103: 0 | K103: 0
A104: Dév physique et moteur | E104: 0 | G104: 0 | I104: 0 | K104: 0
A105: Dév physique et moteur | E105: 0 | G105: 0 | I105: 0 | K105: 0
A106: Dév physique et moteur | E106: 0 | G106: 0 | I106: 0 | K106: 0
A107: Dév physique et moteur | E107: 0 | G107: 0 | I107: 0 | K107: 0
A108: Dév physique et moteur | E108: 0 | G108: 0 | I108: 0 | K108: 0
A109: Dév physique et moteur | E109: 0 | G109: 0 | I109: 0 | K109: 0
A110: Dév social et affectif | E110: 0 | G110: 0 | I110: 0 | K110: 0
A111: Dév social et affectif | E111: 0 | G111: 0 | I111: 0 | K111: 0
A112: Dév social et affectif | E112: 0 | G112: 0 | I112: 0 | K112: 0
A113: Dév social et affectif | E113: 0 | G113: 0 | I113: 0 | K113: 0
A114: Dév social et affectif | E114: 0 | G114: 0 | I114: 0 | K114: 0
A115: Dév social et affectif | E115: 0 | G115: 0 | I115: 0 | K115: 0
A116: Dév social et affectif | E116: 0 | G116: 0 | I116: 0 | K116: 0
A117: Dév social et affectif | E117: 0 | G117: 0 | I117: 0 | K117: 0
A118: Dév cognitif | E118: 0 | G118: 0 | I118: 0 | K118: 0
A119: Dév cognitif | E119: 0 | G119: 0 | I119: 0 | K119: 0
A120: Dév cognitif | E120: 0 | G120: 0 | I120: 0 | K120: 0
A121: Dév cognitif | E121: 0 | G121: 0 | I121: 0 | K121: 0
A122: Dév cognitif | E122: 0 | G122: 0 | I122: 0 | K122: 0
A123: Dév cognitif | E123: 0 | G123: 0 | I123: 0 | K123: 0
A124: Dév cognitif | E124: 0 | G124: 0 | I124: 0 | K124: 0
A125: Dév cognitif | E125: 0 | G125: 0 | I125: 0 | K125: 0
A126: Dév langagier | E126: 0 | G126: 0 | I126: 0 | K126: 0
A127: Dév langagier | E127: 0 | G127: 0 | I127: 0 | K127: 0
A128: Dév langagier | E128: 0 | G128: 0 | I128: 0 | K128: 0
A129: Dév langagier | E129: =C129*D129 -> 0 | G129: =C129*F129 -> 0 | I129: =C129*H129 -> 0 | K129: =C129*J129 -> 0
A130: Dév langagier | E130: 0 | G130: 0 | I130: 0 | K130: 0
A131: Dév langagier | E131: 0 | G131: 0 | I131: 0 | K131: 0
A132: Dév langagier | E132: 0 | G132: 0 | I132: 0 | K132: 0
A133: Dév langagier | E133: 0 | G133: 0 | I133: 0 | K133: 0
A134: Dév langagier | E134: 0 | G134: 0 | I134: 0 | K134: 0
A135: Dév langagier | E135: 0 | G135: 0 | I135: 0 | K135: 0
A136: Dév langagier | E136: 0 | G136: 0 | I136: 0 | K136: 0
A137: Dév langagier | E137: 0 | G137: 0 | I137: 0 | K137: 0
A138: Autre | E138: 0 | G138: 0 | I138: 0 | K138: 0
A139: Autre | E139: 0 | G139: 0 | I139: 0 | K139: 0
A140: Autre | E140: 0 | G140: 0 | I140: 0 | K140: 0
A141: Autre | E141: 0 | G141: 0 | I141: 0 | K141: 0
A142: TOTAL | E142: =SUM(E102:E141) -> 0 | G142: =SUM(G102:G141) -> 0 | I142: =SUM(I102:I141) -> 0 | K142: =SUM(K102:K141) -> 0
A144: Matériel de soins et lingerie
A145: Équipement | D145: Fournisseur 1 | F145: Fournisseur 2 | H145: Fournisseur 3 | J145: Fournisseur 4
A146: Équipement | E146: =C146*D146 -> 0 | G146: =C146*F146 -> 0 | I146: =C146*H146 -> 0 | K146: =C146*J146 -> 0
A147: Équipement | E147: =C147*D147 -> 0 | G147: =C147*F147 -> 0 | I147: =C147*H147 -> 0 | K147: =C147*J147 -> 0
A148: Équipement | E148: =C148*D148 -> 0 | G148: =C148*F148 -> 0 | I148: =C148*H148 -> 0 | K148: =C148*J148 -> 0
A149: Équipement | E149: =C149*D149 -> 0 | G149: =C149*F149 -> 0 | I149: =C149*H149 -> 0 | K149: =C149*J149 -> 0
A150: Équipement | E150: =C150*D150 -> 0 | G150: =C150*F150 -> 0 | I150: =C150*H150 -> 0 | K150: =C150*J150 -> 0
A151: TOTAL | E151: =SUM(E146:E150) -> 0 | G151: =SUM(G146:G150) -> 0 | I151: =SUM(I146:I150) -> 0 | K151: =SUM(K146:K150) -> 0

Sheet Tableaux déroulants (hidden)
A1: Équipement de conservation | C1: 1- Indispensable | E1: Cuisine | G1: Poup 1
A2: Équipement de service | C2: 2- Important | E2: Buanderie | G2: Poup 2
A3: Équipement de préparation | C3: 3- Secondaire | E3: Conciergerie | G3: Poup 3
A4: Équipement de cuisson | E4: Autre | G4: Poup 4
A5: Équipement de nettoyage | G5: Tous
A6: Petit équipement | G6: Autre
A8: Mobilier | C8: Dév. social et affectif | E8: Bureau 1 | G8: Groupe 1
A9: Équipement | C9: Dév. physique et moteur | E9: Bureau 2 | G9: Groupe 2
C10: Dév. cognitif | E10: Salle pédago | G10: Groupe 3
C11: Dév. langagier | E11: Salle du personnel | G11: Groupe 4
A12: Mobilier | C12: Autre | E12: Autre | G12: Groupe 5
A13: Gros équipement | G13: Groupe 6
G14: Groupe 7
G15: Groupe 8
G16: Salle multi
G17: Tous
G18: Autre
